fUSD/lending_fUSD_20250313
["ID","MTS","AMOUNT","RATE_DAILY","PERIOD"]
[356066162,1741877511458,-500.0,0.00028444,18]
[356066163,1741877511468,-500.0,0.00028444,18]
[356066164,1741877511477,-1284.79,0.00028444,18]
[356066165,1741877511486,-654.08,0.00028444,18]
[356066166,1741877511495,-654.08,0.00028444,18]
[356066167,1741877511504,-673.07,0.00028444,18]
[356066168,1741877511513,-500.0,0.00028444,18]
[356066169,1741877511523,-750.81,0.00028444,18]
[356066170,1741877511532,-1571.47,0.00028444,18]
[356066171,1741877511542,-1294.14,0.00028444,18]
[356066172,1741877511551,-1026.51,0.00028444,18]
[356066173,1741877511560,-1417.21,0.00028444,18]
[356066174,1741877511570,-607.97,0.00028444,10]
[356066175,1741877511579,-1149.34,0.00028444,18]
[356066176,1741877511589,-500.0,0.00028444,18]
[356066177,1741877511598,-500.0,0.00028444,18]
[356066178,1741877511608,-626.85,0.00028444,18]
[356066179,1741877511617,-500.0,0.00028444,18]
[356066180,1741877511627,-670.08,0.00028444,18]
[356066181,1741877511636,-670.08,0.00028444,18]
[356066182,1741877511645,-500.0,0.00028444,18]
[356066183,1741877511654,-500.0,0.00028444,18]
[356066184,1741877511664,-686.06,0.00028444,18]
[356066185,1741877511673,-500.0,0.00028444,18]
[356066186,1741877511682,-500.0,0.00028444,18]
[356066187,1741877511691,-500.0,0.00028444,18]
[356066188,1741877511701,-1839.29,0.00028444,18]
[356066189,1741877511710,-1054.15,0.00028444,18]
[356066190,1741877511720,-1131.1,0.00028444,18]
[356066191,1741877511729,-514.25,0.00028444,18]
[356066192,1741877511738,-514.25,0.00028444,18]
[356066193,1741877511748,-500.0,0.00028444,18]
[356066194,1741877511757,-477.79593952,0.00028444,18]
[356066195,1741877511766,-500.0,0.00028444,18]
[356066196,1741877511775,-500.0,0.00028444,18]
[356066197,1741877511784,-2736.88,0.00028444,18]
[356066198,1741877511794,-556.23,0.00028444,18]
[356066199,1741877511803,-556.23,0.00028444,18]
[356066200,1741877511812,-500.0,0.00028444,18]
[356066201,1741877511823,-500.0,0.00028444,18]
[356066202,1741877511833,-500.0,0.00028444,18]
[356066203,1741877511844,-500.0,0.00028444,18]
[356066204,1741877511853,-500.0,0.00028444,18]
[356066205,1741877511863,-500.0,0.00028444,18]
[356066206,1741877511872,-500.0,0.00028444,18]
[356066207,1741877511883,-500.0,0.00028444,18]
[356066208,1741877511892,-500.0,0.00028444,18]
[356066209,1741877511902,-500.0,0.00028444,18]
[356066210,1741877511912,-500.0,0.00028444,18]
[356066211,1741877511923,-500.0,0.00028444,18]
[356066212,1741877511932,-500.0,0.00028444,18]
[356066213,1741877511941,-502.09893088,0.00028444,18]
[356066214,1741877511950,-657.12,0.00028444,18]
[356066215,1741877511960,-2839.76,0.00028444,18]
[356066216,1741877511970,-583.61,0.00028444,18]
[356066217,1741877511979,-583.61,0.00028444,18]
[356066218,1741877511988,-1507.84,0.00028444,18]
[356066219,1741877511998,-749.62,0.00028444,18]
[356066220,1741877512007,-500.0,0.00028444,18]
[356066221,1741877512016,-500.0,0.00028444,18]
[356066222,1741877512025,-500.0,0.00028444,18]
[356066223,1741877512035,-500.0,0.00028444,18]
[356066224,1741877512044,-500.0,0.00028444,18]
[356066225,1741877512054,-500.0,0.00028444,18]
[356066226,1741877512063,-500.0,0.00028444,18]
[356066227,1741877512075,-500.0,0.00028444,18]
[356066228,1741877512084,-500.0,0.00028444,18]
[356066229,1741877512094,-300.0,0.00028445,18]
[356066230,1741877512104,-558.71,0.00028445,18]
[356066231,1741877512114,-500.0,0.00028445,18]
[356066232,1741877512123,-500.0,0.00028445,18]
[356066233,1741877512133,-500.0,0.00028445,18]
[356066234,1741877512142,-500.0,0.00028445,18]
[356066235,1741877512151,-500.0,0.00028445,18]
[356066236,1741877512161,-500.0,0.00028445,18]
[356066237,1741877512170,-500.93469045,0.00028445,18]
[356066238,1741877512180,-925.68,0.00028445,18]
[356066239,1741877512190,-500.0,0.00028445,18]
[356066240,1741877512199,-500.0,0.00028445,18]
[356066241,1741877512209,-500.0,0.00028445,18]
[356066242,1741877512218,-500.0,0.00028445,18]
[356066243,1741877512228,-500.0,0.00028445,18]
[356066244,1741877512237,-500.0,0.00028445,18]
[356066245,1741877512247,-500.0,0.00028445,18]
[356066246,1741877512256,-500.0,0.00028445,18]
[356066247,1741877512266,-500.0,0.00028445,18]
[356066248,1741877512275,-501.03136217,0.00028445,18]
[356066249,1741877512284,-500.0,0.00028445,18]
[356066250,1741877512295,-500.0,0.00028445,18]
[356066251,1741877512304,-500.0,0.00028445,18]
[356066252,1741877512314,-500.0,0.00028445,18]
[356066253,1741877512324,-500.0,0.00028445,18]
[356066254,1741877512334,-500.0,0.00028445,18]
[356066255,1741877512344,-500.0,0.00028445,18]
[356066256,1741877512353,-500.0,0.00028445,18]
[356066257,1741877512362,-500.0,0.00028445,18]
[356066258,1741877512372,-500.0,0.00028445,18]
[356066259,1741877512381,-500.0,0.00028445,18]
[356066260,1741877512390,-500.0,0.00028445,18]
[356066261,1741877512400,-500.0,0.00028445,18]
[356066262,1741877512409,-500.0,0.00028445,18]
[356066263,1741877512419,-500.0,0.00028445,18]
[356066264,1741877512428,-500.0,0.00028445,18]
[356066265,1741877512438,-500.0,0.00028445,18]
[356066266,1741877512448,-500.0,0.00028445,18]
[356066267,1741877512457,-500.0,0.00028445,18]
[356066268,1741877512466,-500.0,0.00028445,18]
[356066269,1741877512476,-500.0,0.00028445,18]
[356066270,1741877512485,-500.0,0.00028445,18]
[356066271,1741877512495,-500.0,0.00028445,18]
[356066272,1741877512505,-500.0,0.00028445,18]
[356066273,1741877512514,-500.0,0.00028445,18]
[356066274,1741877512524,-500.0,0.00028445,18]
[356066275,1741877512533,-1123.05,0.00028445,18]
[356066276,1741877512543,-500.0,0.00028445,18]
[356066277,1741877512552,-500.0,0.00028445,18]
[356066278,1741877512561,-500.0,0.00028445,18]
[356066279,1741877512571,-500.0,0.00028445,18]
[356066280,1741877512581,-500.0,0.00028445,18]
[356066281,1741877512590,-500.0,0.00028445,18]
[356066282,1741877512600,-513.0254807,0.00028445,18]
[356066283,1741877512609,-500.0,0.00028445,18]
[356066284,1741877512619,-500.0,0.00028445,18]
[356066285,1741877512628,-500.0,0.00028445,18]
[356066286,1741877512638,-500.0,0.00028445,18]
[356066287,1741877512647,-500.0,0.00028445,18]
[356066288,1741877512657,-500.0,0.00028445,18]
[356066289,1741877512666,-500.0,0.00028445,18]
[356066290,1741877512676,-500.0,0.00028445,18]
[356066291,1741877512685,-500.0,0.00028445,18]
[356066292,1741877512695,-500.0,0.00028445,18]
[356066293,1741877512704,-500.0,0.00028445,18]
[356066294,1741877512714,-510.22095696,0.00028445,18]
[356066295,1741877512723,-500.0,0.00028445,18]
[356066296,1741877512732,-500.0,0.00028445,18]
[356066297,1741877512741,-506.56103145,0.00028445,18]
[356066298,1741877512750,-500.0,0.00028445,18]
[356066299,1741877512760,-500.0,0.00028445,18]
[356066300,1741877512770,-500.0,0.00028445,18]
[356066301,1741877512779,-500.0,0.00028445,18]
[356066302,1741877512788,-500.0,0.00028445,18]
[356066303,1741877512797,-500.0,0.00028445,18]
[356066304,1741877512806,-263.91426637,0.00028445,18]
[356066305,1741877512815,-500.0,0.00028445,18]
[356066306,1741877512825,-500.0,0.00028445,18]
[356066307,1741877512834,-500.0,0.00028445,18]
[356066308,1741877512846,-500.0,0.00028445,18]
[356066309,1741877512855,-500.0,0.00028445,18]
[356066310,1741877512863,-501.22914243,0.00028445,18]
[356066311,1741877512874,-505.90527397,0.00028445,18]
[356066312,1741877512883,-500.0,0.00028445,18]
[356066313,1741877512891,-505.95254374,0.00028445,18]
[356066314,1741877512901,-496.12286723,0.00028445,18]
[356066315,1741877512910,-500.0,0.00028445,18]
[356066316,1741877512919,-500.0,0.00028445,18]
[356066317,1741877512928,-500.0,0.00028445,18]
[356066318,1741877512937,-500.0,0.00028445,18]
[356066319,1741877512947,-66.63677236,0.00028445,18]
[356066320,1741877513532,-438.14058944,0.00028445,18]
[356066321,1741877513542,-500.0,0.00028445,18]
[356066322,1741877513552,-500.0,0.00028445,18]
[356066323,1741877513561,-500.0,0.00028445,18]
[356066324,1741877513571,-500.0,0.00028445,18]
[356066325,1741877513581,-500.0,0.00028445,18]
[356066326,1741877513590,-437.43267836,0.00028445,18]
[356066327,1741877513600,-500.0,0.00028445,18]
[356066328,1741877513609,-500.0,0.00028445,18]
[356066329,1741877513618,-500.0,0.00028445,18]
[356066330,1741877513628,-500.0,0.00028445,18]
[356066331,1741877513637,-500.0,0.00028445,18]
[356066332,1741877513646,-500.0,0.00028445,18]
[356066333,1741877513656,-500.0,0.00028445,18]
[356066334,1741877513666,-500.0,0.00028445,18]
[356066335,1741877513675,-185.8537052,0.00028445,18]
[356066336,1741877513684,-500.0,0.00028445,18]
[356066337,1741877513693,-500.0,0.00028445,18]
[356066338,1741877513703,-500.0,0.00028445,18]
[356066339,1741877513712,-500.0,0.00028445,18]
[356066340,1741877513722,-500.0,0.00028445,18]
[356066341,1741877513732,-500.0,0.00028445,18]
[356066342,1741877513741,-500.0,0.00028445,18]
[356066343,1741877513750,-500.0,0.00028445,18]
[356066344,1741877513760,-150.0,0.00028445,18]
[356066345,1741877513769,-500.0,0.00028445,18]
[356066346,1741877513778,-295.5490735,0.00028445,18]
[356066347,1741877513791,-204.4509265,0.00028445,18]
[356066348,1741877513800,-1251.2630735,0.00028445,18]
[356066349,1741877513853,-375.712,0.00028422,18]
[356066350,1741877513864,-213.728,0.00028422,18]
[356066351,1741877513874,-500.0,0.00028432,18]
[356066352,1741877513885,-271.832,0.00028443,18]
[356066353,1741877513896,-319.708,0.00028443,18]
[356066354,1741877513906,-582.82,0.00028443,18]
[356066355,1741877513918,-1379.62596269,0.00028445,18]
[356066356,1741877513930,-1338.51701298,0.00028445,18]
[356066357,1741877513949,-368.7964,0.000283,2]
[356066358,1741877513959,-500.0,0.00028434,18]
[356066359,1741877513969,-1030.59395083,0.00028445,18]
[356066360,1741877513978,-500.0,0.00028445,18]
[356066361,1741877513987,-500.0,0.00028445,18]
[356066362,1741877513998,-192.68934666,0.00028445,18]
[356066363,1741877514007,-500.0,0.00028445,18]
[356066364,1741877514016,-500.0,0.00028445,18]
[356066365,1741877514026,-500.0,0.00028445,18]
[356066366,1741877514036,-526.34856049,0.00028445,18]
[356066367,1741877514046,-697.37,0.00028445,18]
[356066368,1741877514055,-500.0,0.00028445,18]
[356066369,1741877514064,-500.0,0.00028445,18]
[356066370,1741877514075,-500.0,0.00028445,18]
[356066371,1741877514085,-500.0,0.00028445,18]
[356066372,1741877514094,-500.0,0.00028445,18]
[356066373,1741877514104,-45.88574202,0.00028445,18]
[356066374,1741877516351,-506.89117029,0.00028412,18]
[356066375,1741877516361,-4668.69,0.00028421,18]
[356066376,1741877516370,-4668.69,0.00028422,18]
[356066377,1741877516380,-589.44,0.00028423,18]
[356066378,1741877516389,-589.44,0.00028423,18]
[356066379,1741877516398,-4668.69,0.00028423,18]
[356066380,1741877516408,-4668.69,0.00028423,18]
[356066381,1741877516417,-4668.69,0.00028423,18]
[356066382,1741877516426,-4668.69,0.00028428,18]
[356066383,1741877516435,-589.44,0.00028429,18]
[356066384,1741877516445,-4668.69,0.00028429,18]
[356066385,1741877516455,-589.44,0.00028431,18]
[356066386,1741877516464,-4668.69,0.00028431,18]
[356066387,1741877516474,-589.44,0.00028432,18]
[356066388,1741877516483,-4668.69,0.00028432,18]
[356066389,1741877516492,-500.0,0.00028433,18]
[356066390,1741877516502,-589.44,0.00028433,18]
[356066391,1741877516511,-4668.69,0.00028433,18]
[356066392,1741877516520,-500.0,0.00028434,18]
[356066393,1741877516529,-327.4465983,0.00028434,18]
[356066394,1741877516538,-589.44,0.00028437,18]
[356066395,1741877516548,-500.0,0.00028438,18]
[356066396,1741877516557,-500.0,0.00028439,18]
[356066397,1741877516567,-407.29039042,0.00028439,18]
[356066398,1741877516580,-589.44,0.00028439,18]
[356066399,1741877516589,-589.44,0.00028439,18]
[356066400,1741877516599,-4668.69,0.00028439,18]
[356066401,1741877516608,-4668.69,0.00028439,18]
[356066402,1741877516618,-4668.69,0.00028441,18]
[356066403,1741877516628,-589.44,0.00028442,18]
[356066404,1741877516638,-4668.69,0.00028442,18]
[356066405,1741877516650,-582.82,0.00028443,18]
[356066406,1741877516661,-582.82,0.00028443,18]
[356066407,1741877516672,-582.82327769,0.00028443,18]
[356066408,1741877516682,-589.44,0.00028443,18]
[356066409,1741877516693,-589.44,0.00028443,18]
[356066410,1741877516703,-4668.69,0.00028443,18]
[356066411,1741877516713,-454.11425798,0.00028445,18]
[356066412,1741877516723,-500.0,0.00028445,18]
[356066413,1741877516733,-500.0,0.00028445,18]
[356066414,1741877516743,-500.0,0.00028445,18]
[356066415,1741877516754,-500.0,0.00028445,18]
[356066416,1741877516764,-1012.26,0.00028445,18]
[356066417,1741877516775,-500.0,0.00028445,18]
[356066418,1741877516786,-500.0,0.00028445,18]
[356066419,1741877516798,-527.49656355,0.00028445,18]
[356066420,1741877516998,-500.0,0.00028445,18]
[356066421,1741877517009,-500.0,0.00028445,18]
[356066422,1741877517019,-522.8,0.00028445,18]
[356066423,1741877517029,-500.0,0.00028445,18]
[356066424,1741877517039,-500.0,0.00028445,18]
[356066425,1741877517049,-501.77094414,0.00028445,18]
[356066426,1741877517059,-500.0,0.00028445,18]
[356066427,1741877517070,-500.0,0.00028445,18]
[356066428,1741877517079,-500.0,0.00028445,18]
[356066429,1741877517088,-689.21,0.00028445,18]
[356066430,1741877517098,-500.0,0.00028445,18]
[356066431,1741877517107,-500.0,0.00028448,18]
[356066432,1741877517117,-541.31,0.00028448,18]
[356066433,1741877517127,-500.0,0.00028448,18]
[356066434,1741877517136,-500.0,0.00028448,18]
[356066435,1741877517146,-500.0,0.00028448,18]
[356066436,1741877517156,-500.0,0.00028448,18]
[356066437,1741877517165,-500.0,0.00028448,18]
[356066438,1741877517175,-500.0,0.00028448,18]
[356066439,1741877517184,-500.0,0.00028448,18]
[356066440,1741877517194,-500.0,0.00028448,18]
[356066441,1741877517203,-500.0,0.00028448,18]
[356066442,1741877517213,-500.0,0.00028448,18]
[356066443,1741877517223,-500.0,0.00028448,18]
[356066444,1741877517232,-500.0,0.00028448,18]
[356066445,1741877517241,-500.0,0.00028448,18]
[356066446,1741877517251,-877.63,0.00028448,18]
[356066447,1741877517261,-2624.51,0.00028448,18]
[356066448,1741877517270,-877.5,0.00028448,18]
[356066449,1741877517279,-654.97,0.00028448,18]
[356066450,1741877517290,-546.0,0.00028448,18]
[356066451,1741877517299,-653.78,0.00028448,18]
[356066452,1741877517309,-512.35,0.00028448,18]
[356066453,1741877517321,-630.4,0.00028448,18]
[356066454,1741877517330,-500.0,0.00028448,18]
[356066455,1741877517340,-631.05,0.00028448,18]
[356066456,1741877517349,-1049.42,0.00028448,18]
[356066457,1741877517359,-630.74,0.00028448,18]
[356066458,1741877517369,-500.0,0.00028448,18]
[356066459,1741877517378,-500.0,0.00028448,18]
[356066460,1741877517387,-6022.95,0.00028448,2]
[356066461,1741877517397,-1152.01,0.00028448,18]
[356066462,1741877517406,-1191.84,0.00028448,18]
[356066463,1741877517416,-778.61,0.00028448,18]
[356066464,1741877517425,-732.88,0.00028448,18]
[356066465,1741877517434,-202.71682707,0.00028448,18]
[356066466,1741877517444,-222.27321196,0.00028448,18]
[356066467,1741877517453,-517.25,0.00028448,18]
[356066468,1741877517462,-500.0,0.00028448,18]
[356066469,1741877517472,-500.0,0.00028448,18]
[356066470,1741877517481,-2562.48,0.00028448,18]
[356066471,1741877517490,-1591.35,0.00028448,18]
[356066472,1741877517499,-1531.67,0.00028448,18]
[356066473,1741877517509,-500.0,0.00028448,18]
[356066474,1741877517518,-774.11,0.00028448,18]
[356066475,1741877517527,-229.74782376,0.00028448,18]
[356066476,1741877517537,-584.93,0.00028448,18]
[356066477,1741877517547,-260.58827675,0.00028448,18]
[356066478,1741877517556,-1328.89,0.00028448,18]
[356066479,1741877517565,-500.0,0.00028448,18]
[356066480,1741877517577,-500.0,0.00028448,18]
[356066481,1741877517586,-354.83,0.00028448,7]
[356066482,1741877517596,-1372.56,0.00028448,18]
[356066483,1741877517605,-1799.08,0.00028448,18]
[356066484,1741877517615,-500.0,0.00028448,18]
[356066485,1741877517624,-500.0,0.00028448,18]
[356066486,1741877517633,-3134.61,0.00028448,18]
[356066487,1741877517643,-500.0,0.00028448,18]
[356066488,1741877517653,-795.32,0.00028448,18]
[356066489,1741877517663,-500.0,0.00028448,18]
[356066490,1741877517673,-500.0,0.00028448,18]
[356066491,1741877517682,-805.12,0.00028448,18]
[356066492,1741877517692,-500.0,0.00028448,18]
[356066493,1741877517702,-3749.8,0.00028448,18]
[356066494,1741877517712,-500.0,0.00028448,18]
[356066495,1741877517723,-503.93,0.00028448,18]
[356066496,1741877517732,-500.0,0.00028448,18]
[356066497,1741877517743,-387.39663456,0.00028448,18]
[356066498,1741877517752,-691.19,0.00028448,18]
[356066499,1741877517761,-565.02,0.00028448,18]
[356066500,1741877517771,-500.0,0.00028448,18]
[356066501,1741877517780,-617.67,0.00028448,18]
[356066502,1741877517790,-500.0,0.00028448,18]
[356066503,1741877517799,-580.97,0.00028448,18]
[356066504,1741877517809,-500.0,0.00028448,18]
[356066505,1741877517821,-500.0,0.00028448,18]
[356066506,1741877517831,-591.54,0.00028448,18]
[356066507,1741877517843,-589.44,0.00028448,18]
[356066508,1741877517853,-4668.69,0.00028448,18]
[356066509,1741877517862,-500.0,0.00028449,18]
[356066510,1741877517871,-502.34,0.00028449,18]
[356066511,1741877517881,-500.0,0.00028449,18]
[356066512,1741877517891,-507.00815131,0.00028449,18]
[356066513,1741877517900,-500.0,0.00028449,18]
[356066514,1741877517909,-500.0,0.00028449,18]
[356066515,1741877517918,-500.0,0.00028449,18]
[356066516,1741877517930,-500.0,0.00028449,18]
[356066517,1741877517939,-500.0,0.00028449,18]
[356066518,1741877517948,-500.0,0.00028449,18]
[356066519,1741877517957,-500.0,0.00028449,18]
[356066520,1741877517967,-810.74,0.00028449,18]
[356066521,1741877517976,-228.28316218,0.00028449,18]
[356066522,1741877517985,-500.0,0.00028449,18]
[356066523,1741877517994,-500.0,0.00028449,18]
[356066524,1741877518004,-561.76,0.00028449,18]
[356066525,1741877518014,-500.0,0.00028449,18]
[356066526,1741877518023,-640.13,0.00028449,18]
[356066527,1741877518032,-500.0,0.00028449,18]
[356066528,1741877518041,-500.0,0.00028449,18]
[356066529,1741877518050,-523.76,0.00028449,18]
[356066530,1741877518060,-500.0,0.00028449,18]
[356066531,1741877518072,-500.0,0.00028449,18]
[356066532,1741877518082,-500.0,0.00028449,18]
[356066533,1741877518092,-500.0,0.00028449,18]
[356066534,1741877518102,-538.91,0.00028449,18]
[356066535,1741877518111,-500.0,0.00028449,18]
[356066536,1741877518122,-539.92,0.00028449,18]
[356066537,1741877518132,-500.0,0.00028449,18]
[356066538,1741877518142,-727.13,0.00028449,18]
[356066539,1741877518152,-500.0,0.00028449,18]
[356066540,1741877518162,-500.0,0.00028449,18]
[356066541,1741877518173,-500.0,0.00028449,18]
[356066542,1741877518183,-557.95,0.00028449,18]
[356066543,1741877518194,-500.0,0.00028449,18]
[356066544,1741877518203,-500.0,0.00028449,18]
[356066545,1741877518213,-621.92,0.00028449,18]
[356066546,1741877518223,-500.0,0.00028449,18]
[356066547,1741877518232,-692.0,0.00028449,18]
[356066548,1741877518241,-500.0,0.00028449,18]
[356066549,1741877518251,-622.0,0.00028449,18]
[356066550,1741877518261,-629.04,0.00028449,18]
[356066551,1741877518272,-500.0,0.00028449,18]
[356066552,1741877518282,-618.22,0.00028449,18]
[356066553,1741877518292,-500.0,0.00028449,18]
[356066554,1741877518302,-500.0,0.00028449,18]
[356066555,1741877518311,-561.75,0.00028449,18]
[356066556,1741877518323,-868.46,0.00028449,18]
[356066557,1741877518332,-1222.98,0.00028449,18]
[356066558,1741877518342,-1173.83,0.00028449,18]
[356066559,1741877518351,-638.02,0.00028449,18]
[356066560,1741877518361,-710.42,0.00028449,18]
[356066561,1741877518371,-568.85,0.00028449,18]
[356066562,1741877518380,-500.0,0.00028449,18]
[356066563,1741877518390,-500.0,0.00028449,18]
[356066564,1741877518400,-500.0,0.00028449,18]
[356066565,1741877518409,-778.43,0.00028449,18]
[356066566,1741877518419,-500.0,0.00028449,18]
[356066567,1741877518429,-898.3,0.00028449,18]
[356066568,1741877518438,-500.0,0.00028449,18]
[356066569,1741877518448,-500.0,0.00028449,18]
[356066570,1741877518457,-500.0,0.00028449,18]
[356066571,1741877518467,-649.27,0.00028449,18]
[356066572,1741877518477,-1005.2,0.00028449,18]
[356066573,1741877518487,-556.85,0.00028449,18]
[356066574,1741877518497,-658.91,0.00028449,18]
[356066575,1741877518507,-675.33,0.00028449,18]
[356066576,1741877518516,-498.62994267,0.00028449,18]
[356066577,1741877518526,-798.69,0.00028449,18]
[356066578,1741877518535,-500.0,0.00028449,18]
[356066579,1741877518545,-500.0,0.00028449,18]
[356066580,1741877518555,-500.0,0.00028449,18]
[356066581,1741877518564,-598.07,0.00028449,18]
[356066582,1741877518576,-654.57,0.00028449,18]
[356066583,1741877518586,-500.0,0.00028449,18]
[356066584,1741877518596,-691.39,0.00028449,18]
[356066585,1741877518605,-719.79,0.00028449,18]
[356066586,1741877518615,-500.0,0.00028449,18]
[356066587,1741877518624,-500.0,0.00028449,18]
[356066588,1741877518633,-543.25,0.00028449,18]
[356066589,1741877518643,-753.81,0.00028449,18]
[356066590,1741877518653,-500.0,0.00028449,18]
[356066591,1741877518662,-520.97,0.00028449,18]
[356066592,1741877518672,-500.0,0.00028449,18]
[356066593,1741877518681,-500.0,0.00028449,18]
[356066594,1741877518690,-500.0,0.00028449,18]
[356066595,1741877518700,-559.71,0.00028449,18]
[356066596,1741877518709,-742.58,0.00028449,18]
[356066597,1741877518719,-500.0,0.00028449,18]
[356066598,1741877518729,-500.0,0.00028449,18]
[356066599,1741877518738,-597.17,0.00028449,18]
[356066600,1741877518748,-841.6,0.00028449,18]
[356066601,1741877518758,-863.22,0.00028449,18]
[356066602,1741877518767,-500.0,0.00028449,18]
[356066603,1741877518777,-500.0,0.00028449,18]
[356066604,1741877518787,-677.32,0.00028449,18]
[356066605,1741877518797,-1079.98,0.00028449,18]
[356066606,1741877518807,-502.92,0.00028449,18]
[356066607,1741877518816,-701.64,0.00028449,18]
[356066608,1741877518827,-500.0,0.00028449,18]
[356066609,1741877518836,-500.0,0.00028449,18]
[356066610,1741877518845,-558.34,0.00028449,18]
[356066611,1741877518859,-500.0,0.00028449,18]
[356066612,1741877518868,-500.0,0.00028449,18]
[356066613,1741877518878,-616.64,0.00028449,18]
[356066614,1741877518888,-500.0,0.00028449,18]
[356066615,1741877518898,-683.37,0.00028449,18]
[356066616,1741877518907,-500.0,0.00028449,18]
[356066617,1741877518917,-500.0,0.00028449,18]
[356066618,1741877518927,-500.0,0.00028449,18]
[356066619,1741877518936,-500.0,0.00028449,18]
[356066620,1741877518946,-500.0,0.00028449,18]
[356066621,1741877518955,-1197.54,0.00028449,18]
[356066622,1741877518964,-603.19,0.00028449,18]
[356066623,1741877518974,-500.0,0.00028449,18]
[356066624,1741877518984,-500.0,0.00028449,18]
[356066625,1741877518994,-500.0,0.00028449,18]
[356066626,1741877519004,-500.0,0.00028449,18]
[356066627,1741877519013,-889.61,0.00028449,18]
[356066628,1741877519024,-500.0,0.00028449,18]
[356066629,1741877519034,-537.09,0.00028449,18]
[356066630,1741877519044,-500.0,0.00028449,18]
[356066631,1741877519054,-629.04968329,0.00028449,18]
[356066632,1741877519063,-500.0,0.00028449,18]
[356066633,1741877519074,-500.0,0.00028449,18]
[356066634,1741877519084,-500.0,0.00028449,18]
[356066635,1741877519094,-500.0,0.00028449,18]
[356066636,1741877519104,-547.45,0.00028449,18]
[356066637,1741877519113,-500.0,0.00028449,18]
[356066638,1741877519123,-725.3,0.00028449,18]
[356066639,1741877519133,-508.73,0.00028449,18]
[356066640,1741877519143,-207.83079321,0.00028449,18]
[356066641,1741877519152,-989.11,0.00028449,18]
[356066642,1741877519162,-5014.88,0.00028449,18]
[356066643,1741877519172,-557.36,0.00028449,18]
[356066644,1741877519182,-500.0,0.00028449,18]
[356066645,1741877519191,-804.68,0.00028449,18]
[356066646,1741877519201,-877.44,0.00028449,18]
[356066647,1741877519210,-500.0,0.00028449,18]
[356066648,1741877519219,-500.0,0.00028449,18]
[356066649,1741877519229,-845.43,0.00028449,18]
[356066650,1741877519238,-545.3,0.00028449,18]
[356066651,1741877519248,-500.0,0.00028449,18]
[356066652,1741877519257,-500.0,0.00028449,18]
[356066653,1741877519267,-515.71,0.00028449,18]
[356066654,1741877519276,-615.24,0.00028449,18]
[356066655,1741877519286,-500.0,0.00028449,18]
[356066656,1741877519295,-548.58,0.00028449,18]
[356066657,1741877519305,-500.0,0.00028449,18]
[356066658,1741877519314,-503.83,0.00028449,18]
[356066659,1741877519323,-500.0,0.00028449,18]
[356066660,1741877519332,-531.75,0.00028449,18]
[356066661,1741877519341,-500.0,0.00028449,18]